Cogmind - Beta 12 @@@ ROGUE MODE // 2023.04.11 @ 08:51:15 Player: Mr Goldstein Result: Destroyed by S-27 Virus with Autogun Performance ------------- Evolutions (4) 2000 Regions Visited (9) 1800 Robots Destroyed (0) 0 Value Destroyed (0) 0 Prototype IDs (0) 0 Alien Tech Used (0) 0 Bonus (1825) 1825 TOTAL SCORE: 5625 Bonus ------- Pacifist 1325 Entered DSFs 500 Cogmind --------- Core Integrity 0/850 Matter 113/300 Energy 99/100 System Corruption 10% Temperature Cool (9) Movement Core (50) Location -6/Factory Parts ------- > --- POWER (1) -------- (None) > --- PROPULSION (2) --- (None) > --- UTILITY (10) ----- Improved Utility Shielding > --- WEAPON (2) ------- (None) > --- INVENTORY (5) ---- Improved Utility Shielding Improved Utility Shielding Peak State ------------ > --- POWER ------------ (None) > --- PROPULSION ------- (None) > --- UTILITY ---------- Improved Utility Shielding > --- WEAPON ----------- (None) > --- INVENTORY -------- Improved Utility Shielding Improved Utility Shielding Improved Utility Shielding [Rating: 3] Favorites ----------- Power None Propulsion None Utility Improved Utility Shielding Protection Improved Utility Shielding Weapon None Build | -11 -10 -10 -9 -8 -7 -7 -6 -6 -6 ------- Run | Jun Mat Min Mat Mat Fac DSF Fac Was Fac Slots Evolved 8 | . . . 2 2 2 . 2 . . Power . | . . . . . . . . . . Propulsion . | . . . . . . . . . . Utility 8 | . . . 2 2 2 . 2 . . Weapon . | . . . . . . . . . . Parts Attached 2 | . . . . . . . 1 . 1 Power . | . . . . . . . . . . Engine . | . . . . . . . . . . Core . | . . . . . . . . . . Reactor . | . . . . . . . . . . Propulsion . | . . . . . . . . . . Treads . | . . . . . . . . . . Leg . | . . . . . . . . . . Wheel . | . . . . . . . . . . Hover . | . . . . . . . . . . Flight . | . . . . . . . . . . Utility 2 | . . . . . . . 1 . 1 Device . | . . . . . . . . . . Storage . | . . . . . . . . . . Processor . | . . . . . . . . . . Hackware . | . . . . . . . . . . Protection 2 | . . . . . . . 1 . 1 Artifact . | . . . . . . . . . . Weapon . | . . . . . . . . . . Energy Gun . | . . . . . . . . . . Energy Cannon . | . . . . . . . . . . Ballistic Gun . | . . . . . . . . . . Ballistic Cannon . | . . . . . . . . . . Launcher . | . . . . . . . . . . Special Weapon . | . . . . . . . . . . Impact Weapon . | . . . . . . . . . . Slashing Weapon . | . . . . . . . . . . Piercing Weapon . | . . . . . . . . . . Special Melee Weapon . | . . . . . . . . . . Unidentified Prototypes . | . . . . . . . . . . Parts Lost 1 | . . . . . . . . 1 . Power . | . . . . . . . . . . Propulsion . | . . . . . . . . . . Utility 1 | . . . . . . . . 1 . Weapon . | . . . . . . . . . . Highest Loss Streak 1 | . . . . . . . . 1 . To Critical Strikes . | . . . . . . . . . . Average Slot Usage (%) 1 | . . . . . . . 1 1 4 Protection 1 | . . . . . . . 1 1 4 Naked Turns 408 | . 30 46 63 40 85 39 51 29 25 Heaviest Build 2 | . . . . . . . 2 2 2 Greatest Support 3 | 3 3 3 3 3 3 3 3 3 3 Greatest Overweight (x) . | . . . . . . . . . . Average Overweight (x) . | . . . . . . . . . . Largest Inventory Capacity 5 | 5 5 5 5 5 5 5 5 5 5 Average Capacity 5 | 5 5 5 5 5 5 5 5 5 5 Most Carried 4 | . . . . . . . 4 3 3 Average Carried . | . . . . . . . . 3 2 Final Capacity 5 | 5 5 5 5 5 5 5 5 5 5 Final Carried 3 | . . . . . . . 3 3 2 Class Distribution -------------------- 100% | Mutant Dominant Class ---------------- Mutant | -10/Materials Mutant | -10/Mines Mutant | -9/Materials Mutant | -8/Materials Mutant | -7/Factory Mutant | -7/DSF Mutant | -6/Factory Mutant | -6/Waste Mutant | -6/Factory Resources | -11 -10 -10 -9 -8 -7 -7 -6 -6 -6 ----------- Run | Jun Mat Min Mat Mat Fac DSF Fac Was Fac Matter Collected . | . . . . . . . . . . Remotely . | . . . . . . . . . . Salvage Created . | . . . . . . . . . . Parts . | . . . . . . . . . . Haulers Intercepted . | . . . . . . . . . . Recyclers Shooed . | . . . . . . . . . . Parts Field Recycled . | . . . . . . . . . . Retrieved Matter . | . . . . . . . . . . Parts Self-Destructed . | . . . . . . . . . . Prevented . | . . . . . . . . . . Kills | -11 -10 -10 -9 -8 -7 -7 -6 -6 -6 ------- Run | Jun Mat Min Mat Mat Fac DSF Fac Was Fac Combat Hostiles Destroyed . | . . . . . . . . . . Classes Destroyed . | . . . . . . . . . . Best Kill Streak . | . . . . . . . . . . Combat Bots Only . | . . . . . . . . . . Max Kills in Single Turn . | . . . . . . . . . . Gunslinging . | . . . . . . . . . . Exploded . | . . . . . . . . . . Melee . | . . . . . . . . . . Uniques/NPCs Destroyed . | . . . . . . . . . . Combat | -11 -10 -10 -9 -8 -7 -7 -6 -6 -6 -------- Run | Jun Mat Min Mat Mat Fac DSF Fac Was Fac Damage Taken 1401 | . 141 11 47 88 . 244 . 38 832 Core 1397 | . 141 11 47 88 . 244 . 38 828 Absorbed by Shields 33 | . . . . . . 33 . . . Core Remaining (%) 75 | 100 . 39 88 84 . 65 . . . Volleys Fired . | . . . . . . . . . . Largest . | . . . . . . . . . . Hottest . | . . . . . . . . . . Shots Fired . | . . . . . . . . . . Gun . | . . . . . . . . . . Cannon . | . . . . . . . . . . Launcher . | . . . . . . . . . . Special . | . . . . . . . . . . Kinetic . | . . . . . . . . . . Thermal . | . . . . . . . . . . Explosive . | . . . . . . . . . . Electromagnetic . | . . . . . . . . . . Robot Hit Streak . | . . . . . . . . . . Robot Miss Streak . | . . . . . . . . . . Penetration Max . | . . . . . . . . . . Secondary Targets . | . . . . . . . . . . Shots Hit Robots . | . . . . . . . . . . Core Hits 3 | . 1 . 1 . . . . . 1 Critical Kills . | . . . . . . . . . . Critical Parts Destroyed . | . . . . . . . . . . Critical Strikes . | . . . . . . . . . . Melee Attacks . | . . . . . . . . . . Impact . | . . . . . . . . . . Slashing . | . . . . . . . . . . Piercing . | . . . . . . . . . . Sneak Attacks . | . . . . . . . . . . Combat Hostiles . | . . . . . . . . . . Follow-up Attacks . | . . . . . . . . . . Damage Inflicted 27 | . 7 . 5 . . 5 . . 10 Guns . | . . . . . . . . . . Cannons . | . . . . . . . . . . Explosions . | . . . . . . . . . . Melee . | . . . . . . . . . . Ramming 27 | . 7 . 5 . . 5 . . 10 Kinetic . | . . . . . . . . . . Thermal . | . . . . . . . . . . Explosive . | . . . . . . . . . . Electromagnetic . | . . . . . . . . . . Impact . | . . . . . . . . . . Slashing . | . . . . . . . . . . Piercing . | . . . . . . . . . . Highest Corruption 10 | . . . . . . . . 9 10 Average Corruption 9 | . . . . . . . . 9 9 Corruption Purged . | . . . . . . . . . . Corruption Blocked . | . . . . . . . . . . Effects 4 | . . . . . . . . 2 2 Message Errors 1 | . . . . . . . . . 1 Energy Discharges 1 | . . . . . . . . 1 . Data Loss (minor) 2 | . . . . . . . . 1 1 Overload Shots . | . . . . . . . . . . Overflow Damage . | . . . . . . . . . . Projectiles . | . . . . . . . . . . Explosions . | . . . . . . . . . . Melee . | . . . . . . . . . . Knockbacks . | . . . . . . . . . . Impact . | . . . . . . . . . . Kinetic . | . . . . . . . . . . Secondary . | . . . . . . . . . . Self-Inflicted Damage 11 | . 3 . 2 . . 2 . . 4 Shots . | . . . . . . . . . . Rammed 10 | . 4 . 1 . . 2 . . 3 Targets Rammed 10 | . 4 . 1 . . 2 . . 3 Kicked . | . . . . . . . . . . Crushed . | . . . . . . . . . . Highest Temperature . | . . . . . . . . . . Average Temperature . | . . . . . . . . . . Received Heat Transfer 210 | . 36 6 18 27 . 96 . . 27 Siege Activations . | . . . . . . . . . . Robots Corrupted . | . . . . . . . . . . Combat Hostiles . | . . . . . . . . . . Parts Fried . | . . . . . . . . . . Impact Corruptions . | . . . . . . . . . . Robots Melted . | . . . . . . . . . . Combat Hostiles . | . . . . . . . . . . Parts Melted . | . . . . . . . . . . Heat Transferred . | . . . . . . . . . . Parts Sabotaged . | . . . . . . . . . . Parts Stolen . | . . . . . . . . . . Parts Stripped . | . . . . . . . . . . Power Chain Reactions . | . . . . . . . . . . Missiles Intercepted . | . . . . . . . . . . Alert | -11 -10 -10 -9 -8 -7 -7 -6 -6 -6 ------- Run | Jun Mat Min Mat Mat Fac DSF Fac Was Fac Peak Influence 121 | . 30 11 48 20 24 35 57 49 121 Initial 27 | . . 11 3 20 9 20 18 19 27 Average 28 | . 14 11 20 20 11 24 37 36 65 Maximum Alert Level . | . . . . . . . . . . Low Security (%) 100 | 100 100 100 100 100 100 100 100 100 100 Level 1 . | . . . . . . . . . . Level 2 . | . . . . . . . . . . Level 3 . | . . . . . . . . . . Level 4 . | . . . . . . . . . . Level 5 . | . . . . . . . . . . High Security . | . . . . . . . . . . Max Security . | . . . . . . . . . . Squads Dispatched 7 | . 1 . . 1 . 2 . . 3 Investigation 3 | . . . . 1 . . . . 2 Extermination . | . . . . . . . . . . Reinforcement 4 | . 1 . . . . 2 . . 1 Assault . | . . . . . . . . . . Garrison . | . . . . . . . . . . Intercept . | . . . . . . . . . . Searches Triggered . | . . . . . . . . . . Construction Impeded . | . . . . . . . . . . Haulers Reinforced . | . . . . . . . . . . Active Scanning Responses . | . . . . . . . . . . Cargo Convoy Interrupts . | . . . . . . . . . . Stealth | -11 -10 -10 -9 -8 -7 -7 -6 -6 -6 --------- Run | Jun Mat Min Mat Mat Fac DSF Fac Was Fac Distress Signals . | . . . . . . . . . . Communications Jammed . | . . . . . . . . . . Distress Signals . | . . . . . . . . . . Times Spotted 46 | . 6 2 4 6 1 6 1 5 15 Peak Tracking Total 10 | . 5 2 4 7 1 5 1 5 10 Tactical Retreats 2 | . . . . . 1 1 . . . Traps | -11 -10 -10 -9 -8 -7 -7 -6 -6 -6 ------- Run | Jun Mat Min Mat Mat Fac DSF Fac Was Fac Traps Triggered 6 | . 1 . . 1 . 2 1 . 1 Indirectly . | . . . . . . . . . . Trap Hack Attempts . | . . . . . . . . . . Triggered . | . . . . . . . . . . Disarmed . | . . . . . . . . . . Reprogrammed . | . . . . . . . . . . Reused . | . . . . . . . . . . Traps Extracted . | . . . . . . . . . . Installed . | . . . . . . . . . . Triggered . | . . . . . . . . . . Machines | -11 -10 -10 -9 -8 -7 -7 -6 -6 -6 ---------- Run | Jun Mat Min Mat Mat Fac DSF Fac Was Fac Machines Disabled . | . . . . . . . . . . Max in Single Turn . | . . . . . . . . . . Machines Repaired . | . . . . . . . . . . Machines Sabotaged . | . . . . . . . . . . Overloaded Fab Kills 1 | . . . . . . . . . 1 Hacking | -11 -10 -10 -9 -8 -7 -7 -6 -6 -6 --------- Run | Jun Mat Min Mat Mat Fac DSF Fac Was Fac Machines Accessed 4 | . . . . . 1 . 1 . 2 Terminals 3 | . . . . . 1 . 1 . 1 Fabricators 1 | . . . . . . . . . 1 Repair Stations . | . . . . . . . . . . Recycling Units . | . . . . . . . . . . Scanalyzers . | . . . . . . . . . . Garrison Access . | . . . . . . . . . . Total Hacks 7 | . . . . . 1 . 2 . 4 Successful 4 | . . . . . 1 . 1 . 2 Failed 3 | . . . . . . . 1 . 2 Catastrophic . | . . . . . . . . . . Database Lockouts . | . . . . . . . . . . Manual 6 | . . . . . . . 2 . 4 Terminals 5 | . . . . . 1 . 2 . 2 Fabricators 2 | . . . . . . . . . 2 Repair Stations . | . . . . . . . . . . Recycling Units . | . . . . . . . . . . Scanalyzers . | . . . . . . . . . . Garrison Access . | . . . . . . . . . . Terminal Hacks 1 | . . . . . 1 . . . . Open DSF 1 | . . . . . 1 . . . . Fabricator Hacks . | . . . . . . . . . . Repair Station Hacks . | . . . . . . . . . . Recycling Unit Hacks . | . . . . . . . . . . Scanalyzer . | . . . . . . . . . . Garrison Access Hacks . | . . . . . . . . . . Unauthorized Hacks 3 | . . . . . . . 1 . 2 Terminals 2 | . . . . . . . 1 . 1 Botnet 2 | . . . . . . . 1 . 1 Fabricators 1 | . . . . . . . . . 1 Overload 1 | . . . . . . . . . 1 Repair Stations . | . . . . . . . . . . Recycling Units . | . . . . . . . . . . Scanalyzers . | . . . . . . . . . . Garrison Access . | . . . . . . . . . . Data Cores Recovered . | . . . . . . . . . . Used . | . . . . . . . . . . Hacking Detections 4 | . . . . . 1 . 1 . 2 Full Trace Events 1 | . . . . . . . . . 1 Feedback Events . | . . . . . . . . . . Feedback Blocked . | . . . . . . . . . . Robot Schematics Acquired . | . . . . . . . . . . Robots Built . | . . . . . . . . . . Authchips . | . . . . . . . . . . Time . | . . . . . . . . . . Total Robot Build Rating . | . . . . . . . . . . Part Schematics Acquired . | . . . . . . . . . . Parts Built . | . . . . . . . . . . Authchips . | . . . . . . . . . . Time . | . . . . . . . . . . Total Part Build Rating . | . . . . . . . . . . Parts Repaired . | . . . . . . . . . . Time . | . . . . . . . . . . Parts Recycled . | . . . . . . . . . . Recycled Matter . | . . . . . . . . . . Retrieved Matter . | . . . . . . . . . . Retrieved Components . | . . . . . . . . . . Parts Scanalyzed . | . . . . . . . . . . Part Schematics Acquired . | . . . . . . . . . . Parts Damaged . | . . . . . . . . . . Bothacking | -11 -10 -10 -9 -8 -7 -7 -6 -6 -6 ------------ Run | Jun Mat Min Mat Mat Fac DSF Fac Was Fac Used RIF Installer . | . . . . . . . . . . Robots Hacked . | . . . . . . . . . . Non-combat . | . . . . . . . . . . Combat . | . . . . . . . . . . Robot Hacks Applied . | . . . . . . . . . . Relay Couplers Released . | . . . . . . . . . . Fabnet Peak Effective % . | . . . . . . . . . . Robots Rewired . | . . . . . . . . . . Allies Hacked . | . . . . . . . . . . Hacks Repelled . | . . . . . . . . . . Allies | -11 -10 -10 -9 -8 -7 -7 -6 -6 -6 -------- Run | Jun Mat Min Mat Mat Fac DSF Fac Was Fac Total Allies . | . . . . . . . . . . Largest Group . | . . . . . . . . . . Highest-Rated Group . | . . . . . . . . . . Highest-Rated Ally . | . . . . . . . . . . Total Orders . | . . . . . . . . . . Ally Attacks . | . . . . . . . . . . Total Damage . | . . . . . . . . . . Kills . | . . . . . . . . . . Allies Corrupted . | . . . . . . . . . . Allies Melted . | . . . . . . . . . . Intel | -11 -10 -10 -9 -8 -7 -7 -6 -6 -6 ------- Run | Jun Mat Min Mat Mat Fac DSF Fac Was Fac Robot Analysis Total . | . . . . . . . . . . Derelict Logs Recovered 2 | . . 2 . . . . . . . Drone Launches . | . . . . . . . . . . Drone Recoveries . | . . . . . . . . . . Exploration | -11 -10 -10 -9 -8 -7 -7 -6 -6 -6 ------------- Run | Jun Mat Min Mat Mat Fac DSF Fac Was Fac Turns Passed 502 | 9 30 46 63 40 85 39 67 44 79 Spaces Moved 951 | 18 51 92 124 80 170 55 124 87 150 Core 951 | 18 51 92 124 80 170 55 124 87 150 Treads . | . . . . . . . . . . Legs . | . . . . . . . . . . Wheels . | . . . . . . . . . . Hover . | . . . . . . . . . . Flight . | . . . . . . . . . . Fastest Speed 50 | 50 50 50 50 50 50 50 50 50 50 Average Speed 50 | 50 50 50 50 50 50 50 50 50 50 Slowest Speed 50 | 50 50 50 50 50 50 50 50 50 50 Overloaded Moves . | . . . . . . . . . . Propulsion Burnouts . | . . . . . . . . . . Robots Hopped . | . . . . . . . . . . Cave-ins Triggered . | . . . . . . . . . . Exploration Rate (%) 26 | 4 17 43 21 14 6 67 6 85 6 Regions Visited 9 Branch Regions 1 Pre-discovered Areas . | . . . . . . . . . . Known Exits Taken 2 | . . . 1 . 1 . . . . Unknown Exits Taken 4 | 1 1 1 . 1 . . . . . Scrap Searched 1 | . . 1 . . . . . . . Spaces Dug . | . . . . . . . . . . Terrain Destroyed . | . . . . . . . . . . Melee . | . . . . . . . . . . Projectile . | . . . . . . . . . . AOE . | . . . . . . . . . . Terrain Rammed . | . . . . . . . . . . Walls Destroyed . | . . . . . . . . . . Machines Disabled . | . . . . . . . . . . Actions | -11 -10 -10 -9 -8 -7 -7 -6 -6 -6 --------- Run | Jun Mat Min Mat Mat Fac DSF Fac Was Fac Total 969 | 17 54 91 124 79 169 66 129 86 154 Wait . | . . . . . . . . . . Move 944 | 17 50 91 123 79 169 55 124 86 150 Hop . | . . . . . . . . . . Pick Up 4 | . . . . . . . 4 . . Fast Attach . | . . . . . . . . . . Attach 2 | . . . . . . . 1 . 1 Detach . | . . . . . . . . . . Swap . | . . . . . . . . . . Drop . | . . . . . . . . . . Fire . | . . . . . . . . . . Melee . | . . . . . . . . . . Ram 9 | . 4 . 1 . . 1 . . 3 Kick . | . . . . . . . . . . Crush . | . . . . . . . . . . Escape Stasis 10 | . . . . . . 10 . . . Rewire . | . . . . . . . . . . Trap . | . . . . . . . . . . Miscellaneous . | . . . . . . . . . . Route ------- -11/Junkyard -10/Materials (discovered 2 exits: [*Min x2]) -10/Mines -9/Materials -8/Materials (discovered 2 exits: *Fac / [*Sto]) -7/Factory -7/DSF -6/Factory -6/Waste -6/Factory History --------- Turn | Location | Event 3 | -11/Junkyard | Discovered new exit (range 15) 10 | -11/Junkyard | Entered Materials 25 | -10/Materials | Discovered new exit (range 11) 32 | -10/Materials | Discovered new exit (range 16) 40 | -10/Materials | Core integrity fell below 50% 40 | -10/Materials | Entered Mines 43 | -10/Mines | Learned 2 Materials zone layouts 76 | -10/Mines | Learned location of 1 exit from Materials 83 | -10/Mines | Discovered new exit (range 8) 86 | -10/Mines | Entered Materials 86 | -9/Materials | Evolved 2 slots: Utility x2 87 | -9/Materials | Identified exit to Materials 149 | -9/Materials | Entered another Materials area 149 | -8/Materials | Evolved 2 slots: Utility x2 185 | -8/Materials | Discovered new exit (range 10) 185 | -8/Materials | Discovered new exit (range 15) 189 | -8/Materials | Entered Factory 189 | -7/Factory | Evolved 2 slots: Utility x2 274 | -7/Factory | Identified exit to DSF 274 | -7/Factory | Entered DSF 284 | -7/DSF | Assembled infested the area 295 | -7/DSF | Additional patrols routed to DSF 295 | -7/DSF | Discovered new exit (range 16) 305 | -7/DSF | Build established: Mutant 313 | -7/DSF | Entered Factory 313 | -6/Factory | Evolved 2 slots: Utility x2 380 | -6/Factory | Sucked down chute 380 | -6/Factory | Entered Waste 385 | -6/Waste | Spotted C-40 Crusher 387 | -6/Waste | Spotted C-40 Crusher 389 | -6/Waste | Spotted C-40 Crusher 395 | -6/Waste | EMP discharged 395 | -6/Waste | Crushed by Compactor (1 part destroyed) 401 | -6/Waste | Spotted C-40 Crusher 406 | -6/Waste | Spotted C-40 Crusher 419 | -6/Waste | Discovered new exit (range 11) 424 | -6/Waste | Entered Factory 477 | -6/Factory | Core integrity fell below 50% 477 | -6/Factory | Core integrity fell below 20% 486 | -6/Factory | System corruption reached 10% 503 | -6/Factory | Destroyed by S-27 Virus with Autogun Last Messages --------------- 00476_ S-27 Virus destroyed. 00476_ Fabricator disabled. 00477_ System corrupted: Component data lost. 00481_ Nuclear Reactor explodes. 00482_ Connecting with Terminal... >>Trojan(Botnet) Trojan loaded successfully. Testing... Terminal linked with 0 systems. Awaiting botnet instructions. 00482_ ALERT: Suspicious activity at Terminal F015. Dispatching Investigation squad. 00483_ R-10 Processor collects Corrupted Autogun. 00495_ K-01 Serf collects debris. 00500_ ALERT: Suspicious intruders detected, dispatching Cutter reinforcements to area. 00500_ K-01 Serf collects debris. 00501_ Slammed into G-50 Soldier. 00501_ K-01 Serf collects debris. 00502_ Slammed into G-50 Soldier. Map ----- +----------------------------------------------------+ | ########## #??????????????????? | | ### ####??????????????????? | | """ """ ??# #?????????????????????? | | ###### """ """ #??# #?????????????????????? | | ?????# """ """ #??# #?????????????????????? | | ?????# #??# #?????????????????????? | | ?????# """ """??????# #?????????????????????? | | ?????# """ ""???????# #?????????????????????? | | ?????# """ ""???????# #?????????????????????? | | ????? ?????????# #?????????????????????? | | ????## ?????????# #?????????????????????? | | ?????# ########??????####+#########?????????????? | | ?????# #?????????????# #?????????????? | | ?????# #?????????????# #?????????????? | | ?????# ?????????????# #?????????????? | | ?????# #?????????????# #?????????????? | | ?????# ??????????????# #?????????????? | | ?????? ??????????????# #?????????????? | | ??????????????????????# #?????????????? | | ??????????????????????# #?????????????? | | ??????????????????????# #?????????????? | | ??????????????????????#k #?????????????? | | ??????????????????????# #?????????????? | | ??????????????????????# g #?????????????? | | ????????????????# ##/###########?????????????? | | ????????????????# k gA@ = ????????? | | ????????????????# Y Y????????? | | ???????????? w ????????? | | ???????????###### ! ############### ?????????? | | ????????????????### ##???????????????????????????? | | ??????????????????# ?????????????????????????????? | | ??????????????????#??????????????????????????????? | | ?????????????????????????????????????????????????? | | ?????????????????????????????????????????????????? | | ???????????????????H?????????????????????????????? | | ?????????????????????????????????????????????????? | | ?????????????????????????????????????????????????? | | ?????????????????????????????????????????????????? | | ?????????????????????????????????????????????????? | | ?????????????????????????????????????????????????? | | ?????????????????????????????????????????????????? | | ?????????????????????????????????????????????????? | | ?????????????????????????????????????????????????? | | ?????????????????????????????????????????????????? | | ?????????????????????????????????????????????????? | | ?????????????????????????????????????????????????? | | ?????????????????????????????????????????????????? | | ?????????????????????????????????????????????????? | | ?????????????????????????????????????????????????? | | ?????????????????????????????????????????????????? | +----------------------------------------------------+ Best States ------------- Heat Dissipation 37 Energy Generation 5 Energy Capacity 100 Matter Stores 123 Matter Capacity 300 Sight Range 16 Terrain Scan Density 10 Utility Shielding 66 Evasion (%) 50 Item Schematics ----------------- None Robot Schematics ------------------ None Fabricated ------------ Nothing Alien Tech Used ----------------- None Achievements -------------- None Challenges ------------ None Game ------ Seed HeartShadingRouter Manual? 0 Play Time 00:08:28 Cumulative 93.5 hours Start 2023.04.11 @ 08:44:09 End 2023.04.11 @ 08:51:15 Sessions 1 Manual Loads 0 Difficulty Rogue Special Mode None Game No. 166 Rogue 166 Adventurer 0 Explorer 0 Win Type - Total 2 Types 2/0/0/0/0/0/0/0/0 Lore% 55 Gallery% 57 Achievement% 46 Wizard Run 0 Options --------- ASCII 0 Keyboard 0 Movement Numpad Keybinds 0 Fullscreen 1 Font 12/Smallcaps Map View 83x54 Tactical HUD 1 Map Filters NONE Filters NONE Steam 1 RUN: 4f3b71cd-2c7b-4dca-8d23-4a73c8c8b8d8